[Event "Goteborg Open 2024"]
[Site "Goteborgs Schackcentrum, Vegatan 20, Gothenburg, Sweden"]
[Date "2024.08.03"]
[Round "6.9"]
[White "Evertsson, David"]
[Black "Utriainen, Tapani"]
[Result "0-1"]
[TimeControl "15 minutes + 5 seconds per move from move one (Round 1 - 4) / 90 minutes + 30 seconds per move from move one (Round 5 - 8)"]
[WhiteFideId "1777424"]
[BlackFideId "16300696"]
[WhiteElo "1642"]
[BlackElo "1914"]

1. e4 {[%clk 01:30:58]} {[%emt 00:00:02]} c6 {[%clk 01:30:50]} {[%emt
00:00:07]} 2. d4 {[%clk 01:31:22]} {[%emt 00:00:10]} d5 {[%clk 01:31:16]}
{[%emt 00:00:03]} 3. exd5 {[%clk 01:31:47]} {[%emt 00:00:05]} cxd5 {[%clk
01:31:41]} {[%emt 00:00:06]} 4. c4 {[%clk 01:32:07]} {[%emt 00:00:10]} Nf6
{[%clk 01:32:05]} {[%emt 00:00:05]} 5. Nc3 {[%clk 01:32:25]} {[%emt 00:00:12]}
e6 {[%clk 01:32:27]} {[%emt 00:00:08]} 6. Nf3 {[%clk 01:32:13]} {[%emt
00:00:42]} Bb4 {[%clk 01:32:50]} {[%emt 00:00:08]} 7. Bd3 {[%clk 01:29:00]}
{[%emt 00:03:42]} dxc4 {[%clk 01:32:31]} {[%emt 00:00:49]} 8. Bxc4 {[%clk
01:29:17]} {[%emt 00:00:12]} Nd5 {[%clk 01:31:10]} {[%emt 00:01:51]} 9. Qc2
{[%clk 01:26:23]} {[%emt 00:03:24]} O-O {[%clk 01:31:00]} {[%emt 00:00:41]} 10.
O-O {[%clk 01:26:38]} {[%emt 00:00:14]} Nxc3 {[%clk 01:28:25]} {[%emt
00:03:06]} 11. bxc3 {[%clk 01:26:59]} {[%emt 00:00:09]} Be7 {[%clk 01:28:52]}
{[%emt 00:00:03]} 12. Bb3 {[%clk 01:24:21]} {[%emt 00:03:07]} b6 {[%clk
01:27:39]} {[%emt 00:01:44]} 13. Qd3 {[%clk 01:24:21]} {[%emt 00:00:29]} Ba6
{[%clk 01:23:50]} {[%emt 00:04:20]} 14. c4 {[%clk 01:22:44]} {[%emt 00:02:08]}
Nd7 {[%clk 01:24:09]} {[%emt 00:00:10]} 15. Bc2 {[%clk 01:22:20]} {[%emt
00:00:54]} Nf6 {[%clk 01:23:44]} {[%emt 00:00:54]} 16. Bg5 {[%clk 01:20:29]}
{[%emt 00:02:21]} g6 {[%clk 01:23:56]} {[%emt 00:00:19]} 17. Bh6 {[%clk
01:07:05]} {[%emt 00:13:54]} Re8 {[%clk 01:23:37]} {[%emt 00:00:49]} 18. Bb3
{[%clk 01:06:40]} {[%emt 00:00:55]} Qc7 {[%clk 01:19:23]} {[%emt 00:04:45]} 19.
h3 {[%clk 01:02:18]} {[%emt 00:04:51]} Red8 {[%clk 01:17:39]} {[%emt 00:02:13]}
20. Rfe1 {[%clk 00:59:03]} {[%emt 00:03:45]} Bb4 {[%clk 01:13:17]} {[%emt
00:04:53]} 21. Bg5 {[%clk 00:46:55]} {[%emt 00:12:38]} Kg7 {[%clk 01:07:29]}
{[%emt 00:06:18]} 22. Re3 {[%clk 00:45:55]} {[%emt 00:01:29]} Be7 {[%emt
00:09:15]} 23. Qd2 {[%clk 00:41:33]} Bxc4 {[%clk 00:39:52]} {[%emt 00:26:55]}
24. Rc1 {[%clk 00:40:33]} {[%emt 00:01:29]} b5 {[%clk 00:39:41]} {[%emt
00:00:41]} 25. Ne5 {[%clk 00:35:47]} {[%emt 00:05:17]} Nd5 {[%clk 00:28:23]}
{[%emt 00:11:48]} 26. Bxe7 {[%clk 00:33:31]} {[%emt 00:02:45]} Qxe7 {[%clk
00:28:01]} {[%emt 00:00:52]} 27. Nc6 {[%clk 00:33:08]} {[%emt 00:00:53]} Qe8
{[%clk 00:24:29]} {[%emt 00:04:02]} 28. Nxd8 {[%clk 00:32:59]} {[%emt
00:00:39]} Nxe3 {[%clk 00:24:42]} {[%emt 00:00:17]} 29. Nxe6+ {[%clk 00:32:59]}
{[%emt 00:00:30]} Bxe6 {[%clk 00:24:06]} {[%emt 00:01:06]} 30. fxe3 {[%clk
00:33:13]} {[%emt 00:00:16]} a5 {[%clk 00:23:50]} {[%emt 00:00:47]} 31. d5
{[%clk 00:31:39]} {[%emt 00:02:03]} Bf5 {[%clk 00:23:30]} {[%emt 00:00:50]} 32.
Bc2 {[%clk 00:30:36]} {[%emt 00:01:33]} Bd7 {[%clk 00:18:06]} {[%emt 00:05:54]}
33. e4 {[%clk 00:29:00]} {[%emt 00:02:06]} Qe5 {[%clk 00:17:40]} {[%emt
00:00:56]} 34. a3 {[%clk 00:13:45]} {[%emt 00:15:46]} Qb2 {[%clk 00:16:12]}
{[%emt 00:01:57]} 35. Rb1 {[%clk 00:08:01]} {[%emt 00:06:15]} Qxa3 {[%clk
00:16:28]} {[%emt 00:00:14]} 36. Qd4+ {[%clk 00:08:12]} {[%emt 00:00:18]} Kg8
{[%clk 00:16:23]} {[%emt 00:00:34]} 37. e5 {[%clk 00:06:45]} {[%emt 00:01:58]}
Rc8 {[%clk 00:14:32]} {[%emt 00:02:21]} 38. Bd3 {[%clk 00:05:25]} {[%emt
00:01:50]} Qc5 {[%clk 00:14:24]} {[%emt 00:00:38]} 39. Qxc5 {[%clk 00:04:34]}
{[%emt 00:01:20]} Rxc5 {[%clk 00:14:53]} {[%emt 00:00:02]} 40. e6 {[%clk
00:03:41]} {[%emt 00:01:24]} fxe6 {[%clk 00:15:13]} {[%emt 00:00:10]} 41. dxe6
{[%clk 00:04:03]} {[%emt 00:00:07]} Be8 {[%clk 00:15:29]} {[%emt 00:00:14]} 42.
Rb2 {[%clk 00:01:33]} {[%emt 00:02:59]} Kf8 {[%clk 00:15:34]} {[%emt 00:00:26]}
43. Bb1 {[%clk 00:01:47]} {[%emt 00:00:16]} Ke7 {[%clk 00:15:05]} {[%emt
00:00:59]} 44. Ba2 {[%clk 00:01:43]} {[%emt 00:00:35]} b4 {[%clk 00:14:24]}
{[%emt 00:01:10]} 45. Re2 {[%clk 00:00:33]} {[%emt 00:01:39]} a4 {[%clk
00:14:06]} {[%emt 00:00:49]} 46. Re4 {[%clk 00:00:42]} {[%emt 00:00:22]} b3
{[%clk 00:13:33]} {[%emt 00:01:03]} 47. Bxb3 {[%clk 00:00:40]} {[%emt
00:00:31]} axb3 {[%clk 00:13:56]} {[%emt 00:00:07]} 48. Rb4 {[%clk 00:01:07]}
{[%emt 00:00:03]} Rb5 {[%clk 00:13:56]} {[%emt 00:00:30]} 49. Ra4 {[%clk
00:00:42]} {[%emt 00:00:55]} b2 {[%clk 00:14:11]} {[%emt 00:00:16]} 50. Ra7+
{[%clk 00:00:40]} {[%emt 00:00:32]} Kxe6 {[%clk 00:14:32]} {[%emt 00:00:08]} 51.
Rxh7 {[%clk 00:00:59]} {[%emt 00:00:11]} b1=Q+ {[%clk 00:14:52]} {[%emt
00:00:10]} 52. Kh2 {[%clk 00:01:12]} {[%emt 00:00:17]} Rb2 {[%clk 00:14:46]}
{[%emt 00:00:36]} 53. Rc7 {[%clk 00:01:18]} {[%emt 00:00:23]} Qe4 {[%clk
00:14:53]} {[%emt 00:00:24]} 0-1

[Event "Goteborg Open 2024"]
[Site "Goteborgs Schackcentrum, Vegatan 20, Gothenburg, Sweden"]
[Date "2024.08.03"]
[Round "6.10"]
[White "Johansson, Eva"]
[Black "Borin, Jesper"]
[Result "0-1"]
[TimeControl "15 minutes + 5 seconds per move from move one (Round 1 - 4) / 90 minutes + 30 seconds per move from move one (Round 5 - 8)"]
[WhiteFideId "1724584"]
[BlackFideId "1771337"]
[WhiteElo "1878"]
[BlackElo "1905"]

1. d4 {[%clk 01:30:55]} {[%emt 00:00:04]} Nf6 {[%clk 01:30:57]} {[%emt
00:00:03]} 2. c4 {[%clk 01:31:16]} {[%emt 00:00:10]} e6 {[%clk 01:31:24]}
{[%emt 00:00:02]} 3. Nf3 {[%clk 01:31:39]} {[%emt 00:00:08]} b6 {[%clk
01:31:40]} {[%emt 00:00:14]} 4. g3 {[%clk 01:31:58]} {[%emt 00:00:10]} Ba6
{[%clk 01:32:06]} {[%emt 00:00:05]} 5. b3 {[%clk 01:31:28]} {[%emt 00:01:00]}
Bb4+ {[%clk 01:32:32]} {[%emt 00:00:03]} 6. Bd2 {[%clk 01:31:47]} {[%emt
00:00:11]} Be7 {[%clk 01:33:01]} {[%emt 00:00:02]} 7. Bg2 {[%clk 01:31:40]}
{[%emt 00:00:37]} O-O {[%clk 01:33:19]} {[%emt 00:00:12]} 8. O-O {[%clk
01:32:05]} {[%emt 00:00:05]} d5 {[%clk 01:33:42]} {[%emt 00:00:07]} 9. Qc2
{[%clk 01:30:10]} {[%emt 00:02:23]} Nbd7 {[%clk 01:32:50]} {[%emt 00:01:23]} 10.
Bf4 {[%clk 01:26:05]} {[%emt 00:04:34]} Rc8 {[%clk 01:32:29]} {[%emt 00:00:51]}
11. Nbd2 {[%clk 01:22:51]} {[%emt 00:03:45]} c5 {[%clk 01:32:32]} {[%emt
00:00:28]} 12. Qb2 {[%clk 01:20:12]} {[%emt 00:03:09]} dxc4 {[%clk 01:24:42]}
{[%emt 00:08:21]} 13. Nxc4 {[%clk 01:18:04]} {[%emt 00:02:37]} cxd4 {[%clk
01:24:50]} {[%emt 00:00:22]} 14. Qxd4 {[%clk 01:15:33]} {[%emt 00:03:00]} Nd5
{[%clk 01:24:33]} {[%emt 00:00:48]} 15. Rfd1 {[%clk 01:10:44]} {[%emt
00:05:18]} Bf6 {[%clk 01:16:32]} {[%emt 00:08:32]} 16. Nfe5 {[%clk 01:08:10]}
{[%emt 00:03:03]} Bxc4 {[%clk 01:11:42]} {[%emt 00:05:21]} 17. bxc4 {[%clk
01:07:24]} {[%emt 00:01:15]} Nxf4 {[%clk 01:12:04]} {[%emt 00:00:09]} 18. gxf4
{[%clk 01:04:05]} {[%emt 00:03:48]} Nxe5 {[%clk 01:12:09]} {[%emt 00:00:25]} 19.
fxe5 {[%clk 01:02:38]} {[%emt 00:01:58]} Qxd4 {[%clk 01:12:30]} {[%emt
00:00:08]} 0-1

[Event "Goteborg Open 2024"]
[Site "Goteborgs Schackcentrum, Vegatan 20, Gothenburg, Sweden"]
[Date "2024.08.03"]
[Round "6.11"]
[White "Madevan Vaishnavi, Yaashvan"]
[Black "Bergdahl, Martin"]
[Result "1/2-1/2"]
[TimeControl "15 minutes + 5 seconds per move from move one (Round 1 - 4) / 90 minutes + 30 seconds per move from move one (Round 5 - 8)"]
[WhiteFideId "1772180"]
[BlackFideId "1782231"]
[WhiteElo "1684"]
[BlackElo "1711"]

1. e4 {[%clk 01:30:59]} {[%emt 00:00:02]} e5 {[%clk 01:30:40]} {[%emt
00:00:19]} 2. Nf3 {[%clk 01:31:23]} {[%emt 00:00:06]} Nc6 {[%clk 01:31:04]}
{[%emt 00:00:06]} 3. d4 {[%clk 01:31:45]} {[%emt 00:00:09]} exd4 {[%clk
01:31:11]} {[%emt 00:00:22]} 4. Bc4 {[%clk 01:32:08]} {[%emt 00:00:08]} Bb4+
{[%clk 01:30:11]} {[%emt 00:01:29]} 5. c3 {[%clk 01:32:32]} {[%emt 00:00:07]}
dxc3 {[%clk 01:30:34]} {[%emt 00:00:07]} 6. bxc3 {[%clk 01:32:57]} {[%emt
00:00:05]} Bd6 {[%clk 01:29:05]} {[%emt 00:01:58]} 7. O-O {[%clk 01:32:59]}
{[%emt 00:00:28]} Nge7 {[%clk 01:27:34]} {[%emt 00:02:01]} 8. Be3 {[%clk
01:31:36]} {[%emt 00:01:53]} O-O {[%clk 01:26:43]} {[%emt 00:01:21]} 9. Nd4
{[%clk 01:31:21]} {[%emt 00:00:46]} Be5 {[%clk 01:24:55]} {[%emt 00:02:17]} 10.
Nd2 {[%clk 01:30:35]} {[%emt 00:01:16]} Bxd4 {[%clk 01:24:33]} {[%emt
00:00:51]} 11. cxd4 {[%clk 01:30:56]} {[%emt 00:00:10]} d5 {[%clk 01:24:55]}
{[%emt 00:00:09]} 12. exd5 {[%clk 01:30:52]} {[%emt 00:00:33]} Nxd5 {[%clk
01:25:06]} {[%emt 00:00:19]} 13. Nb3 {[%clk 01:30:31]} {[%emt 00:00:51]} Be6
{[%clk 01:24:50]} {[%emt 00:00:45]} 14. Rc1 {[%clk 01:28:30]} {[%emt 00:02:32]}
Re8 {[%clk 01:22:58]} {[%emt 00:02:21]} 15. Qf3 {[%clk 01:25:25]} {[%emt
00:03:36]} Nf6 {[%clk 01:18:57]} {[%emt 00:04:31]} 16. Bxe6 {[%clk 01:25:15]}
{[%emt 00:00:40]} Rxe6 {[%clk 01:18:33]} {[%emt 00:00:53]} 17. Nc5 {[%clk
01:25:35]} {[%emt 00:00:12]} Re8 {[%clk 01:17:36]} {[%emt 00:01:24]} 18. Nxb7
{[%clk 01:25:44]} {[%emt 00:00:24]} Nxd4 {[%clk 01:17:46]} {[%emt 00:00:20]} 19.
Nxd8 {[%clk 01:25:21]} {[%emt 00:00:53]} Nxf3+ {[%clk 01:17:55]} {[%emt
00:00:21]} 20. gxf3 {[%clk 01:25:45]} {[%emt 00:00:05]} Raxd8 {[%emt 00:01:13]}
21. Rxc7 {[%clk 01:25:31]} {[%emt 00:00:02]} Nd5 {[%clk 01:17:59]} {[%emt
00:00:25]} 22. Rxa7 {[%clk 01:25:51]} {[%emt 00:00:11]} Nxe3 {[%clk 01:18:00]}
{[%emt 00:00:28]} 23. fxe3 {[%clk 01:26:04]} {[%emt 00:00:17]} Rxe3 {[%clk
01:18:23]} {[%emt 00:00:06]} 24. a4 {[%clk 01:24:32]} {[%emt 00:02:03]} Ree8
{[%clk 01:17:22]} {[%emt 00:01:30]} 25. Kg2 {[%clk 01:23:15]} {[%emt 00:01:48]}
Ra8 {[%clk 01:17:27]} {[%emt 00:00:25]} 26. Rxa8 {[%clk 01:23:31]} {[%emt
00:00:12]} Rxa8 {[%clk 01:17:48]} {[%emt 00:00:09]} 27. Ra1 {[%clk 01:23:53]}
{[%emt 00:00:09]} Kf8 {[%clk 01:18:04]} {[%emt 00:00:15]} 28. Kf2 {[%clk
01:24:02]} {[%emt 00:00:20]} Ra5 {[%clk 01:18:32]} {[%emt 00:00:02]} 29. Ke3
{[%clk 01:24:26]} {[%emt 00:00:06]} Ke7 {[%clk 01:18:02]} {[%emt 00:01:00]} 30.
Kd4 {[%clk 01:24:01]} {[%emt 00:00:55]} Kd6 {[%clk 01:16:49]} {[%emt 00:01:43]}
31. Kc4 {[%clk 01:23:09]} {[%emt 00:01:22]} Kc6 {[%clk 01:16:56]} {[%emt
00:00:23]} 32. Kb4 {[%clk 01:23:00]} {[%emt 00:00:40]} Kb6 {[%clk 01:14:58]}
{[%emt 00:02:28]} 33. Re1 {[%clk 01:18:16]} {[%emt 00:05:13]} Rf5 {[%clk
01:14:57]} {[%emt 00:00:30]} 34. Re3 {[%clk 01:17:18]} {[%emt 00:01:29]} Rh5
{[%clk 01:14:37]} {[%emt 00:00:37]} 35. Re7 {[%clk 01:17:11]} {[%emt 00:00:50]}
Rf5 {[%clk 01:14:47]} {[%emt 00:00:20]} 36. Re3 {[%clk 01:15:37]} {[%emt
00:02:04]} h5 {[%clk 01:12:31]} {[%emt 00:02:45]} 37. Rd3 {[%clk 01:13:08]}
{[%emt 00:02:59]} Rf6 {[%clk 01:11:58]} {[%emt 00:01:04]} 38. Re3 {[%clk
01:11:38]} {[%emt 00:02:00]} g5 {[%clk 01:10:03]} {[%emt 00:02:25]} 39. h3
{[%clk 01:11:03]} {[%emt 00:01:05]} Rf4+ {[%clk 01:09:17]} {[%emt 00:01:16]} 40.
Kc3 {[%clk 01:10:10]} {[%emt 00:01:24]} Rxa4 {[%clk 01:08:43]} {[%emt
00:01:02]} 41. Re5 {[%clk 01:10:23]} {[%emt 00:00:18]} Ra3+ {[%clk 01:06:56]}
{[%emt 00:02:17]} 42. Kd2 {[%clk 01:10:29]} {[%emt 00:00:24]} Rxf3 {[%clk
01:06:52]} {[%emt 00:00:31]} 43. Rxg5 {[%clk 01:10:53]} {[%emt 00:00:09]} Rxh3
{[%clk 01:06:13]} {[%emt 00:01:08]} 44. Rf5 {[%clk 01:08:43]} {[%emt 00:02:41]}
Rh1 {[%clk 01:04:33]} {[%emt 00:02:09]} 45. Rxf7 {[%clk 01:06:42]} {[%emt
00:02:32]} h4 {[%clk 01:04:50]} {[%emt 00:00:12]} 46. Rh7 {[%clk 01:05:59]}
{[%emt 00:01:13]} h3 {[%clk 01:04:22]} {[%emt 00:00:59]} 47. Ke2 {[%clk
01:03:32]} {[%emt 00:02:56]} h2 {[%clk 01:04:36]} {[%emt 00:00:17]} 48. Kf2
{[%clk 01:03:15]} {[%emt 00:00:47]} Ra1 {[%clk 01:05:00]} {[%emt 00:00:06]} 49.
Rxh2 {[%clk 01:03:36]} {[%emt 00:00:09]} Ra2+ {[%clk 01:05:23]} {[%emt
00:00:07]} 50. Kg3 {[%clk 01:04:00]} {[%emt 00:00:06]} Rxh2 {[%clk 01:05:45]}
{[%emt 00:00:07]} 51. Kxh2 {[%clk 01:04:28]} 1/2-1/2

[Event "Goteborg Open 2024"]
[Site "Goteborgs Schackcentrum, Vegatan 20, Gothenburg, Sweden"]
[Date "2024.08.03"]
[Round "6.12"]
[White "Karlsson, Stefan"]
[Black "Fransson, Lennart"]
[Result "0-1"]
[TimeControl "15 minutes + 5 seconds per move from move one (Round 1 - 4) / 90 minutes + 30 seconds per move from move one (Round 5 - 8)"]
[WhiteFideId "1771183"]
[BlackFideId "1706756"]
[WhiteElo "2042"]
[BlackElo "1926"]

1. e4 {[%emt 00:00:15]} c6 {[%clk 01:30:47]} {[%emt 00:00:02]} 2. d4 {[%clk
01:31:03]} {[%emt 00:00:21]} d5 {[%clk 01:31:15]} {[%emt 00:00:03]} 3. e5
{[%clk 01:31:26]} {[%emt 00:00:07]} Bf5 {[%clk 01:31:38]} {[%emt 00:00:07]} 4.
h4 {[%clk 01:31:28]} {[%emt 00:00:29]} Qb6 {[%clk 01:21:54]} {[%emt 00:10:12]}
5. g4 {[%clk 01:16:35]} {[%emt 00:15:22]} Bd7 {[%clk 01:20:56]} {[%emt
00:01:30]} 6. Bg2 {[%clk 01:07:23]} {[%emt 00:09:42]} Nh6 {[%clk 01:18:05]}
{[%emt 00:03:23]} 7. f3 {[%clk 00:58:42]} {[%emt 00:09:10]} Na6 {[%clk
01:14:14]} {[%emt 00:04:21]} 8. Ne2 {[%clk 00:53:33]} {[%emt 00:05:37]} f6
{[%clk 01:11:29]} {[%emt 00:03:15]} 9. exf6 {[%clk 00:39:20]} {[%emt 00:14:44]}
exf6 {[%clk 01:09:20]} {[%emt 00:02:38]} 10. O-O {[%clk 00:35:47]} {[%emt
00:04:04]} Bd6 {[%clk 01:07:32]} {[%emt 00:02:17]} 11. Re1 {[%clk 00:31:26]}
{[%emt 00:04:52]} O-O-O {[%clk 01:07:49]} {[%emt 00:00:13]} 12. c3 {[%clk
00:29:59]} {[%emt 00:01:58]} Nf7 {[%clk 01:04:24]} {[%emt 00:03:54]} 13. Qc2
{[%clk 00:24:39]} {[%emt 00:05:51]} Rde8 {[%clk 00:59:50]} {[%emt 00:05:02]} 14.
Na3 {[%clk 00:22:11]} {[%emt 00:02:59]} Re7 {[%clk 00:57:44]} {[%emt 00:02:36]}
15. Bd2 {[%clk 00:22:29]} {[%emt 00:00:12]} Rhe8 {[%clk 00:57:10]} {[%emt
00:01:04]} 16. Kf1 {[%clk 00:21:17]} {[%emt 00:01:42]} h5 {[%clk 00:54:11]}
{[%emt 00:03:28]} 17. gxh5 {[%clk 00:19:34]} {[%emt 00:02:14]} Qc7 {[%clk
00:39:31]} {[%emt 00:15:10]} 18. Ng1 {[%clk 00:16:18]} {[%emt 00:03:46]} Bg3
{[%clk 00:35:38]} {[%emt 00:04:22]} 19. Rxe7 {[%clk 00:16:37]} {[%emt
00:00:13]} Rxe7 {[%clk 00:36:06]} {[%emt 00:00:02]} 20. Be1 {[%clk 00:16:16]}
{[%emt 00:00:51]} Bxe1 {[%clk 00:31:17]} {[%emt 00:05:19]} 21. Rxe1 {[%clk
00:16:41]} {[%emt 00:00:04]} Rxe1+ {[%clk 00:31:41]} {[%emt 00:00:07]} 22. Kxe1
{[%clk 00:17:08]} {[%emt 00:00:03]} Qf4 {[%clk 00:31:55]} {[%emt 00:00:15]} 23.
Kf1 {[%clk 00:13:31]} {[%emt 00:04:07]} Nd6 {[%clk 00:30:31]} {[%emt 00:01:53]}
24. Ne2 {[%clk 00:13:15]} {[%emt 00:00:46]} Qxh4 {[%clk 00:30:18]} {[%emt
00:00:43]} 25. Qg6 {[%clk 00:13:18]} {[%emt 00:00:28]} Nf5 {[%clk 00:30:15]}
{[%emt 00:00:33]} 26. Nc2 {[%clk 00:13:30]} {[%emt 00:00:18]} Nc7 {[%clk
00:29:41]} {[%emt 00:01:04]} 27. Kg1 {[%clk 00:12:02]} {[%emt 00:01:58]} Kd8
{[%clk 00:26:48]} {[%emt 00:03:24]} 28. Qg4 {[%clk 00:10:45]} {[%emt 00:01:45]}
Qxg4 {[%clk 00:25:58]} {[%emt 00:01:20]} 29. fxg4 {[%clk 00:11:12]} {[%emt
00:00:05]} Nh6 {[%clk 00:26:13]} {[%emt 00:00:14]} 30. g5 {[%clk 00:11:28]}
{[%emt 00:00:13]} fxg5 {[%clk 00:26:33]} {[%emt 00:00:11]} 31. Ne3 {[%clk
00:11:15]} {[%emt 00:00:43]} Ke7 {[%clk 00:24:16]} {[%emt 00:02:47]} 32. Nc1
{[%clk 00:11:17]} {[%emt 00:00:28]} Ng4 {[%clk 00:23:27]} {[%emt 00:01:19]} 33.
Nf1 {[%clk 00:11:30]} {[%emt 00:00:18]} Nf6 {[%clk 00:23:32]} {[%emt 00:00:24]}
34. Ng3 {[%clk 00:11:51]} {[%emt 00:00:09]} Bg4 {[%clk 00:23:00]} {[%emt
00:01:01]} 35. Nd3 {[%clk 00:11:54]} {[%emt 00:00:29]} Nxh5 {[%clk 00:22:49]}
{[%emt 00:00:40]} 36. Nxh5 {[%clk 00:11:57]} {[%emt 00:00:27]} Bxh5 {[%clk
00:23:17]} {[%emt 00:00:02]} 37. Nc5 {[%clk 00:11:42]} {[%emt 00:00:45]} b6
{[%clk 00:23:26]} {[%emt 00:00:21]} 38. Nd3 {[%clk 00:11:52]} {[%emt 00:00:19]}
Kd6 {[%clk 00:23:07]} {[%emt 00:00:50]} 39. Kf2 {[%clk 00:11:40]} {[%emt
00:00:43]} a5 {[%clk 00:19:00]} {[%emt 00:04:36]} 40. Bh3 {[%clk 00:11:12]}
{[%emt 00:00:57]} Ne8 {[%clk 00:17:07]} {[%emt 00:02:22]} 41. Bf5 {[%clk
00:10:28]} {[%emt 00:01:16]} Nf6 {[%clk 00:14:04]} {[%emt 00:03:32]} 42. b4
{[%clk 00:10:25]} {[%emt 00:00:34]} g6 {[%clk 00:13:25]} {[%emt 00:01:09]} 43.
bxa5 {[%clk 00:10:19]} {[%emt 00:00:36]} bxa5 {[%clk 00:13:47]} {[%emt
00:00:08]} 44. Bh3 {[%clk 00:10:30]} {[%emt 00:00:19]} Ne4+ {[%clk 00:13:28]}
{[%emt 00:00:49]} 45. Ke3 {[%clk 00:10:57]} {[%emt 00:00:04]} c5 {[%clk
00:09:53]} {[%emt 00:04:04]} 46. Bg2 {[%clk 00:10:40]} {[%emt 00:00:47]} cxd4+
{[%clk 00:09:47]} {[%emt 00:00:37]} 47. Kxd4 {[%clk 00:10:55]} {[%emt
00:00:15]} Be2 {[%clk 00:09:08]} {[%emt 00:01:08]} 48. Bxe4 {[%clk 00:10:20]}
{[%emt 00:01:06]} dxe4 {[%clk 00:09:29]} {[%emt 00:00:09]} 49. Nc5 {[%clk
00:10:38]} {[%emt 00:00:11]} Bd3 {[%clk 00:09:05]} {[%emt 00:00:53]} 50. Nb7+
{[%clk 00:10:26]} {[%emt 00:00:44]} Kc7 {[%clk 00:09:12]} {[%emt 00:00:23]} 51.
Nxa5 {[%clk 00:10:43]} {[%emt 00:00:12]} g4 {[%clk 00:09:20]} {[%emt 00:00:22]}
52. Nb3 {[%clk 00:10:04]} {[%emt 00:01:10]} g3 {[%clk 00:08:05]} {[%emt
00:01:44]} 53. Ke3 {[%clk 00:10:27]} {[%emt 00:00:07]} Kd6 {[%clk 00:07:23]}
{[%emt 00:01:12]} 54. Nd4 {[%clk 00:07:32]} {[%emt 00:03:25]} Kd5 {[%clk
00:07:18]} {[%emt 00:00:35]} 55. a4 {[%clk 00:07:27]} {[%emt 00:00:35]} Kc4
{[%clk 00:06:12]} {[%emt 00:01:37]} 56. a5 {[%clk 00:05:02]} {[%emt 00:02:54]}
Kxc3 {[%clk 00:06:18]} {[%emt 00:00:24]} 57. Ne6 {[%clk 00:03:38]} {[%emt
00:01:54]} Kc2 {[%clk 00:03:08]} {[%emt 00:03:40]} 58. Nf4 {[%clk 00:03:49]}
{[%emt 00:00:19]} g5 {[%clk 00:02:55]} {[%emt 00:00:43]} 59. Nh3 {[%clk
00:03:09]} {[%emt 00:01:10]} Kd1 {[%clk 00:02:08]} {[%emt 00:01:18]} 60. a6
{[%clk 00:01:07]} {[%emt 00:02:31]} Bxa6 {[%clk 00:02:29]} {[%emt 00:00:09]} 61.
Nxg5 {[%clk 00:00:44]} {[%emt 00:00:53]} Ke1 {[%clk 00:01:58]} {[%emt
00:01:01]} 62. Kxe4 {[%clk 00:01:02]} {[%emt 00:00:12]} g2 {[%clk 00:02:04]}
{[%emt 00:00:24]} 63. Kf4 {[%clk 00:00:52]} {[%emt 00:00:40]} Bb7 {[%clk
00:02:15]} {[%emt 00:00:19]} 64. Nh3 {[%clk 00:01:16]} {[%emt 00:00:06]} Kf1
{[%clk 00:02:23]} {[%emt 00:00:21]} 65. Kg3 {[%clk 00:00:41]} {[%emt 00:01:06]}
Bc8 {[%clk 00:02:42]} {[%emt 00:00:11]} 66. Nf4 {[%clk 00:00:39]} {[%emt
00:00:33]} g1=Q+ {[%clk 00:03:00]} {[%emt 00:00:11]} 67. Kf3 {[%clk 00:01:03]}
{[%emt 00:00:06]} Bb7+ {[%clk 00:03:11]} {[%emt 00:00:19]} 68. Nd5 {[%clk
00:01:26]} {[%emt 00:00:08]} Bxd5+ {[%clk 00:03:34]} {[%emt 00:00:07]} 0-1